[Event "Titled Tuesday Blitz June 14 Early 2022"]
[White "Harvey, Marcus R"]
[Black "Matlakov, Maxim"]
[WhiteFideId "400092"]
[BlackFideId "4168003"]
[WhiteElo "2485"]
[BlackElo "2669"]
[Result "1/2-1/2"]
[Round "07"]
[TimeControl "180+1"]
[Date "2022.06.14"]
[WhiteClock "0:00:56"]
[BlackClock "0:01:59"]

1. d4 {[%clk 0:03:00]}  d5 {[%clk 0:02:58]} 2. c4 {[%clk 0:02:53]}  dxc4 {[%clk 0:02:59]} 3. Nf3 {[%clk 0:02:53]}  Nf6 {[%clk 0:02:59]} 4. e3 {[%clk 0:02:51]}  Bg4 {[%clk 0:02:59]} 5. Bxc4 {[%clk 0:02:50]}  e6 {[%clk 0:02:58]} 6. O-O {[%clk 0:02:50]}  a6 {[%clk 0:02:57]} 7. h3 {[%clk 0:02:49]}  Bh5 {[%clk 0:02:57]} 8. Nbd2 {[%clk 0:02:47]}  Nc6 {[%clk 0:02:56]} 9. Be2 {[%clk 0:02:46]}  Bd6 {[%clk 0:02:56]} 10. Nc4 {[%clk 0:02:44]}  O-O {[%clk 0:02:53]} 11. b3 {[%clk 0:02:43]}  Ne4 {[%clk 0:02:49]} 12. Bb2 {[%clk 0:02:42]}  f5 {[%clk 0:02:48]} 13. Nxd6 {[%clk 0:02:35]}  Qxd6 {[%clk 0:02:46]} 14. Nd2 {[%clk 0:02:33]}  Bxe2 {[%clk 0:02:46]} 15. Qxe2 {[%clk 0:02:33]}  Nxd2 {[%clk 0:02:40]} 16. Qxd2 {[%clk 0:02:34]}  Ne7 {[%clk 0:02:37]} 17. a4 {[%clk 0:02:33]}  Qd7 {[%clk 0:02:30]} 18. Ba3 {[%clk 0:02:33]}  Rfe8 {[%clk 0:02:31]} 19. Bxe7 {[%clk 0:02:26]}  Qxe7 {[%clk 0:02:32]} 20. Rfc1 {[%clk 0:02:26]}  a5 {[%clk 0:02:30]} 21. Rc5 {[%clk 0:02:25]}  b6 {[%clk 0:02:30]} 22. Rc6 {[%clk 0:02:25]}  Red8 {[%clk 0:02:30]} 23. Rac1 {[%clk 0:02:22]}  Rd7 {[%clk 0:02:30]} 24. Qc2 {[%clk 0:02:20]}  Ra7 {[%clk 0:02:29]} 25. Qc4 {[%clk 0:02:19]}  Kf7 {[%clk 0:02:29]} 26. Re1 {[%clk 0:02:12]}  Rd6 {[%clk 0:02:27]} 27. e4 {[%clk 0:02:09]}  Rxc6 {[%clk 0:02:26]} 28. Qxc6 {[%clk 0:02:09]}  Qd6 {[%clk 0:02:26]} 29. Qc4 {[%clk 0:01:52]}  fxe4 {[%clk 0:02:25]} 30. Rxe4 {[%clk 0:01:52]}  c6 {[%clk 0:02:26]} 31. g3 {[%clk 0:01:41]}  g6 {[%clk 0:02:23]} 32. Rf4+ {[%clk 0:01:40]}  Kg7 {[%clk 0:02:24]} 33. h4 {[%clk 0:01:39]}  Rf7 {[%clk 0:02:21]} 34. Rxf7+ {[%clk 0:01:39]}  Kxf7 {[%clk 0:02:22]} 35. Qd3 {[%clk 0:01:36]}  Qd5 {[%clk 0:02:22]} 36. Qe3 {[%clk 0:01:35]}  h5 {[%clk 0:02:20]} 37. Qf4+ {[%clk 0:01:35]}  Ke8 {[%clk 0:02:14]} 38. Qb8+ {[%clk 0:01:24]}  Qd8 {[%clk 0:02:13]} 39. Qe5 {[%clk 0:01:21]}  Kf7 {[%clk 0:02:10]} 40. Qf4+ {[%clk 0:01:14]}  Kg7 {[%clk 0:02:10]} 41. Qe5+ {[%clk 0:01:11]}  Kf7 {[%clk 0:02:10]} 42. Qf4+ {[%clk 0:01:08]}  Ke8 {[%clk 0:01:59]} 43. Qe4 {[%clk 0:01:07]}  Kf7 {[%clk 0:01:59]} 44. Qf4+ {[%clk 0:00:56]} 1/2-1/2


[Site "https://www.chess.com"]

[Event "Titled Tuesday Blitz June 14 Early 2022"]
[White "Lashkin, Jegor"]
[Black "Lewtak, Damian"]
[WhiteFideId "13907808"]
[BlackFideId "1141724"]
[WhiteElo "2368"]
[BlackElo "2379"]
[Result "1-0"]
[Round "07"]
[TimeControl "180+1"]
[Date "2022.06.14"]
[WhiteClock "0:00:06"]
[BlackClock "0:00:05"]

1. d4 {[%clk 0:03:00]}  b6 {[%clk 0:02:59]} 2. c4 {[%clk 0:02:59]}  Bb7 {[%clk 0:02:59]} 3. Nc3 {[%clk 0:02:59]}  g6 {[%clk 0:02:59]} 4. e4 {[%clk 0:02:59]}  Bg7 {[%clk 0:02:59]} 5. Nf3 {[%clk 0:02:58]}  d6 {[%clk 0:02:59]} 6. Bd3 {[%clk 0:02:56]}  Nd7 {[%clk 0:03:00]} 7. Be3 {[%clk 0:02:56]}  e6 {[%clk 0:02:59]} 8. O-O {[%clk 0:02:47]}  Ne7 {[%clk 0:02:59]} 9. d5 {[%clk 0:02:44]}  e5 {[%clk 0:02:56]} 10. b4 {[%clk 0:02:43]}  h6 {[%clk 0:02:40]} 11. c5 {[%clk 0:02:36]}  bxc5 {[%clk 0:02:38]} 12. bxc5 {[%clk 0:02:36]}  Nxc5 {[%clk 0:02:39]} 13. Bxc5 {[%clk 0:02:30]}  dxc5 {[%clk 0:02:40]} 14. Bb5+ {[%clk 0:02:21]}  c6 {[%clk 0:02:39]} 15. dxc6 {[%clk 0:02:21]}  Bxc6 {[%clk 0:02:37]} 16. Bxc6+ {[%clk 0:02:18]}  Nxc6 {[%clk 0:02:36]} 17. Qa4 {[%clk 0:02:19]}  Rc8 {[%clk 0:02:28]} 18. Rfd1 {[%clk 0:02:04]}  Qa5 {[%clk 0:01:34]} 19. Qxa5 {[%clk 0:01:13]}  Nxa5 {[%clk 0:01:35]} 20. Nb5 {[%clk 0:01:02]}  Ke7 {[%clk 0:01:33]} 21. Nxa7 {[%clk 0:00:58]}  Ra8 {[%clk 0:01:15]} 22. Nb5 {[%clk 0:00:57]}  Rhb8 {[%clk 0:01:09]} 23. Nc7 {[%clk 0:00:57]}  Ra7 {[%clk 0:01:09]} 24. Nd5+ {[%clk 0:00:58]}  Ke6 {[%clk 0:01:00]} 25. Rab1 {[%clk 0:00:31]}  Rab7 {[%clk 0:01:00]} 26. Rbc1 {[%clk 0:00:31]}  Bf8 {[%clk 0:00:58]} 27. h4 {[%clk 0:00:20]}  c4 {[%clk 0:00:52]} 28. Ne3 {[%clk 0:00:16]}  Ba3 {[%clk 0:00:47]} 29. Rc2 {[%clk 0:00:12]}  Rb1 {[%clk 0:00:42]} 30. Kf1 {[%clk 0:00:10]}  Rxd1+ {[%clk 0:00:41]} 31. Nxd1 {[%clk 0:00:11]}  f5 {[%clk 0:00:31]} 32. Nc3 {[%clk 0:00:10]}  Bc5 {[%clk 0:00:26]} 33. Ke2 {[%clk 0:00:08]}  Bd4 {[%clk 0:00:25]} 34. exf5+ {[%clk 0:00:08]}  gxf5 {[%clk 0:00:25]} 35. Nd2 {[%clk 0:00:09]}  Bxc3 {[%clk 0:00:12]} 36. Rxc3 {[%clk 0:00:10]}  Kd5 {[%clk 0:00:09]} 37. Ra3 {[%clk 0:00:08]}  Rb5 {[%clk 0:00:09]} 38. Ke3 {[%clk 0:00:07]}  Nc6 {[%clk 0:00:08]} 39. Ra8 {[%clk 0:00:06]}  f4+ {[%clk 0:00:08]} 40. Ke2 {[%clk 0:00:04]}  Rb2 {[%clk 0:00:08]} 41. Kd1 {[%clk 0:00:03]}  c3 {[%clk 0:00:06]} 42. Nb3 {[%clk 0:00:03]}  Nd4 {[%clk 0:00:06]} 43. Rd8+ {[%clk 0:00:03]}  Kc4 {[%clk 0:00:05]} 44. Rc8+ {[%clk 0:00:03]}  Kd5 {[%clk 0:00:04]} 45. Rc5+ {[%clk 0:00:03]}  Kd6 {[%clk 0:00:04]} 46. Rxc3 {[%clk 0:00:03]}  Rxa2 {[%clk 0:00:01]} 47. Nxd4 {[%clk 0:00:03]}  exd4 {[%clk 0:00:02]} 48. Rd3 {[%clk 0:00:03]}  Rxf2 {[%clk 0:00:02]} 49. Rxd4+ {[%clk 0:00:03]}  Ke5 {[%clk 0:00:03]} 50. Rd2 {[%clk 0:00:04]}  Rxg2 {[%clk 0:00:03]} 51. Rxg2 {[%clk 0:00:04]}  Ke4 {[%clk 0:00:04]} 52. Rf2 {[%clk 0:00:05]}  f3 {[%clk 0:00:04]} 53. Kd2 {[%clk 0:00:05]}  Kf4 {[%clk 0:00:05]} 54. h5 {[%clk 0:00:05]}  Kg3 {[%clk 0:00:05]} 55. Ke3 {[%clk 0:00:06]} 1-0


[Site "https://www.chess.com"]

[Event "Titled Tuesday Blitz June 14 Early 2022"]
[White "Lazavik, Denis"]
[Black "Durarbayli, Vasif"]
[WhiteFideId "13515110"]
[BlackFideId "13402935"]
[WhiteElo "2437"]
[BlackElo "2528"]
[Result "0-1"]
[Round "07"]
[TimeControl "180+1"]
[Date "2022.06.14"]
[WhiteClock "0:00:03"]
[BlackClock "0:00:59"]

1. d4 {[%clk 0:03:00]}  Nf6 {[%clk 0:02:59]} 2. c4 {[%clk 0:03:01]}  e6 {[%clk 0:03:00]} 3. Nf3 {[%clk 0:03:02]}  b6 {[%clk 0:02:59]} 4. g3 {[%clk 0:03:01]}  Bb7 {[%clk 0:03:00]} 5. Bg2 {[%clk 0:03:02]}  Be7 {[%clk 0:03:01]} 6. O-O {[%clk 0:03:02]}  O-O {[%clk 0:03:01]} 7. Re1 {[%clk 0:03:02]}  Ne4 {[%clk 0:03:02]} 8. Nfd2 {[%clk 0:02:58]}  d5 {[%clk 0:03:02]} 9. cxd5 {[%clk 0:02:58]}  exd5 {[%clk 0:03:02]} 10. Nxe4 {[%clk 0:02:58]}  dxe4 {[%clk 0:03:03]} 11. Nc3 {[%clk 0:02:59]}  f5 {[%clk 0:03:03]} 12. Bf4 {[%clk 0:02:59]}  Nc6 {[%clk 0:02:59]} 13. Nb5 {[%clk 0:02:38]}  g5 {[%clk 0:02:57]} 14. Bxc7 {[%clk 0:02:31]}  Qd5 {[%clk 0:02:52]} 15. Nc3 {[%clk 0:02:19]}  Qxd4 {[%clk 0:02:52]} 16. Qb3+ {[%clk 0:02:19]}  Rf7 {[%clk 0:02:52]} 17. Rad1 {[%clk 0:02:14]}  Qb4 {[%clk 0:02:52]} 18. Qxb4 {[%clk 0:01:42]}  Bxb4 {[%clk 0:02:39]} 19. Bd6 {[%clk 0:01:41]}  Bxc3 {[%clk 0:02:39]} 20. bxc3 {[%clk 0:01:41]}  Rc8 {[%clk 0:02:39]} 21. g4 {[%clk 0:01:38]}  fxg4 {[%clk 0:02:32]} 22. Bxe4 {[%clk 0:01:38]}  Na5 {[%clk 0:02:33]} 23. Bd5 {[%clk 0:01:34]}  Bxd5 {[%clk 0:02:32]} 24. Rxd5 {[%clk 0:01:35]}  h6 {[%clk 0:02:32]} 25. Be5 {[%clk 0:01:35]}  Nc4 {[%clk 0:02:29]} 26. Bd4 {[%clk 0:01:34]}  Kh7 {[%clk 0:02:23]} 27. Kg2 {[%clk 0:01:33]}  Re8 {[%clk 0:02:21]} 28. e4 {[%clk 0:01:28]}  Nd2 {[%clk 0:02:20]} 29. e5 {[%clk 0:01:28]}  Nf3 {[%clk 0:02:12]} 30. Re3 {[%clk 0:01:26]}  Nh4+ {[%clk 0:01:52]} 31. Kf1 {[%clk 0:01:24]}  Re6 {[%clk 0:01:51]} 32. Rd6 {[%clk 0:00:46]}  Rfe7 {[%clk 0:01:51]} 33. Rxe6 {[%clk 0:00:46]}  Rxe6 {[%clk 0:01:52]} 34. h3 {[%clk 0:00:40]}  Nf5 {[%clk 0:01:28]} 35. Rd3 {[%clk 0:00:40]}  gxh3 {[%clk 0:01:28]} 36. Rxh3 {[%clk 0:00:41]}  g4 {[%clk 0:01:28]} 37. Rd3 {[%clk 0:00:36]}  Kg6 {[%clk 0:01:29]} 38. a4 {[%clk 0:00:33]}  h5 {[%clk 0:01:24]} 39. Rd1 {[%clk 0:00:32]}  Nh4 {[%clk 0:01:21]} 40. Ra1 {[%clk 0:00:31]}  Nf3 {[%clk 0:01:20]} 41. a5 {[%clk 0:00:30]}  h4 {[%clk 0:01:13]} 42. axb6 {[%clk 0:00:22]}  axb6 {[%clk 0:01:13]} 43. Ra6 {[%clk 0:00:23]}  Kf5 {[%clk 0:01:11]} 44. Be3 {[%clk 0:00:14]}  b5 {[%clk 0:01:09]} 45. Ra8 {[%clk 0:00:06]}  h3 {[%clk 0:01:08]} 46. Rf8+ {[%clk 0:00:06]}  Kxe5 {[%clk 0:01:07]} 47. Rh8 {[%clk 0:00:05]}  Ra6 {[%clk 0:01:05]} 48. Ke2 {[%clk 0:00:05]}  h2 {[%clk 0:00:59]} 49. Rh5+ {[%clk 0:00:04]}  Ke4 {[%clk 0:00:59]} 50. Rh8 {[%clk 0:00:02]}  Ra2+ {[%clk 0:00:59]} 51. Kf1 {[%clk 0:00:03]}  Ra1+ {[%clk 0:00:59]} 0-1


[Site "https://www.chess.com"]

[Event "Titled Tuesday Blitz June 14 Early 2022"]
[White "Le, Tuan Minh"]
[Black "Lamaze, Simon"]
[WhiteFideId "12401153"]
[BlackFideId "36069264"]
[WhiteElo "2530"]
[BlackElo "2090"]
[Result "1-0"]
[Round "07"]
[TimeControl "180+1"]
[Date "2022.06.14"]
[WhiteClock "0:00:20"]
[BlackClock "0:00:21"]

1. d4 {[%clk 0:03:00]}  Nf6 {[%clk 0:02:59]} 2. Nf3 {[%clk 0:03:01]}  e6 {[%clk 0:02:59]} 3. Bf4 {[%clk 0:03:02]}  d5 {[%clk 0:02:55]} 4. e3 {[%clk 0:03:02]}  c5 {[%clk 0:02:56]} 5. c3 {[%clk 0:03:02]}  Nc6 {[%clk 0:02:56]} 6. Nbd2 {[%clk 0:03:03]}  Nh5 {[%clk 0:02:56]} 7. Be5 {[%clk 0:03:03]}  f6 {[%clk 0:02:52]} 8. Bg3 {[%clk 0:03:03]}  Nxg3 {[%clk 0:02:52]} 9. hxg3 {[%clk 0:03:04]}  Bd7 {[%clk 0:02:51]} 10. Bd3 {[%clk 0:03:04]}  f5 {[%clk 0:02:46]} 11. c4 {[%clk 0:02:08]}  dxc4 {[%clk 0:02:40]} 12. Bxc4 {[%clk 0:02:06]}  cxd4 {[%clk 0:02:36]} 13. exd4 {[%clk 0:02:06]}  Bb4 {[%clk 0:02:30]} 14. O-O {[%clk 0:02:05]}  O-O {[%clk 0:02:27]} 15. d5 {[%clk 0:01:52]}  exd5 {[%clk 0:02:27]} 16. Bxd5+ {[%clk 0:01:53]}  Kh8 {[%clk 0:02:26]} 17. Nc4 {[%clk 0:01:53]}  Qf6 {[%clk 0:02:17]} 18. Qb3 {[%clk 0:01:49]}  a5 {[%clk 0:01:33]} 19. a3 {[%clk 0:01:36]}  a4 {[%clk 0:01:33]} 20. Qc2 {[%clk 0:01:37]}  Bc5 {[%clk 0:01:29]} 21. Rad1 {[%clk 0:01:34]}  Rad8 {[%clk 0:01:27]} 22. Bxc6 {[%clk 0:00:48]}  Bxc6 {[%clk 0:01:25]} 23. Nce5 {[%clk 0:00:48]}  Rxd1 {[%clk 0:01:11]} 24. Rxd1 {[%clk 0:00:44]}  Bxf3 {[%clk 0:01:05]} 25. Nxf3 {[%clk 0:00:44]}  Qb6 {[%clk 0:01:05]} 26. Rd5 {[%clk 0:00:42]}  Be7 {[%clk 0:01:00]} 27. Rxf5 {[%clk 0:00:39]}  Bf6 {[%clk 0:01:00]} 28. Ng5 {[%clk 0:00:31]}  g6 {[%clk 0:00:50]} 29. Rf4 {[%clk 0:00:29]}  Kg7 {[%clk 0:00:45]} 30. Rb4 {[%clk 0:00:24]}  Qa6 {[%clk 0:00:20]} 31. Rxa4 {[%clk 0:00:25]}  Qd6 {[%clk 0:00:20]} 32. Ne4 {[%clk 0:00:21]}  Qd7 {[%clk 0:00:20]} 33. Nxf6 {[%clk 0:00:19]}  Rxf6 {[%clk 0:00:21]} 34. Rc4 {[%clk 0:00:20]}  Rf7 {[%clk 0:00:20]} 35. Qc3+ {[%clk 0:00:20]}  Kg8 {[%clk 0:00:21]} 36. Rc8+ {[%clk 0:00:20]}  Rf8 {[%clk 0:00:21]} 37. Qc4+ {[%clk 0:00:19]}  Kg7 {[%clk 0:00:21]} 38. Rc7 {[%clk 0:00:20]} 1-0


[Site "https://www.chess.com"]

[Event "Titled Tuesday Blitz June 14 Early 2022"]
[White "Martinez Alcantara, Jose Eduardo"]
[Black "Pranav Anand"]
[WhiteFideId "3805662"]
[BlackFideId "46626786"]
[WhiteElo "2703"]
[BlackElo "2259"]
[Result "1-0"]
[Round "07"]
[TimeControl "180+1"]
[Date "2022.06.14"]
[WhiteClock "0:00:22"]
[BlackClock "0:00:13"]

1. e4 {[%clk 0:03:00]}  c5 {[%clk 0:02:59]} 2. Nf3 {[%clk 0:03:01]}  Nc6 {[%clk 0:02:59]} 3. c3 {[%clk 0:03:00]}  d5 {[%clk 0:02:56]} 4. exd5 {[%clk 0:03:00]}  Qxd5 {[%clk 0:02:57]} 5. d4 {[%clk 0:03:01]}  Bf5 {[%clk 0:02:57]} 6. Be3 {[%clk 0:03:01]}  cxd4 {[%clk 0:02:56]} 7. Nxd4 {[%clk 0:03:01]}  Bd7 {[%clk 0:02:52]} 8. Nd2 {[%clk 0:03:01]}  e5 {[%clk 0:02:48]} 9. N4f3 {[%clk 0:02:53]}  Be6 {[%clk 0:02:34]} 10. Qa4 {[%clk 0:02:38]}  Nf6 {[%clk 0:02:26]} 11. Bc4 {[%clk 0:02:33]}  Qd7 {[%clk 0:02:26]} 12. Bb5 {[%clk 0:02:29]}  Bd6 {[%clk 0:02:24]} 13. Nc4 {[%clk 0:02:26]}  O-O {[%clk 0:02:14]} 14. Rd1 {[%clk 0:02:25]}  Bxc4 {[%clk 0:02:13]} 15. Qxc4 {[%clk 0:02:26]}  Qc7 {[%clk 0:02:10]} 16. Nd2 {[%clk 0:02:05]}  a6 {[%clk 0:02:06]} 17. Bxc6 {[%clk 0:02:05]}  bxc6 {[%clk 0:02:07]} 18. Ne4 {[%clk 0:01:54]}  Nxe4 {[%clk 0:02:05]} 19. Qxe4 {[%clk 0:01:55]}  f5 {[%clk 0:02:01]} 20. Qc4+ {[%clk 0:01:52]}  Kh8 {[%clk 0:02:02]} 21. O-O {[%clk 0:01:53]}  Rf6 {[%clk 0:01:57]} 22. Bc5 {[%clk 0:01:49]}  Bxc5 {[%clk 0:01:27]} 23. Qxc5 {[%clk 0:01:50]}  e4 {[%clk 0:01:28]} 24. Rd4 {[%clk 0:01:39]}  Rh6 {[%clk 0:01:24]} 25. h3 {[%clk 0:01:39]}  Re8 {[%clk 0:01:21]} 26. Qxf5 {[%clk 0:01:37]}  Rhe6 {[%clk 0:01:18]} 27. Re1 {[%clk 0:01:35]}  Rf6 {[%clk 0:01:01]} 28. Rdxe4 {[%clk 0:01:31]}  Ref8 {[%clk 0:01:01]} 29. Qe5 {[%clk 0:01:26]}  Qb6 {[%clk 0:01:01]} 30. R4e2 {[%clk 0:01:15]}  Rxf2 {[%clk 0:01:01]} 31. Qd4 {[%clk 0:01:15]}  Rxe2 {[%clk 0:00:53]} 32. Rxe2 {[%clk 0:01:14]}  Qb5 {[%clk 0:00:45]} 33. Rf2 {[%clk 0:01:07]}  Rg8 {[%clk 0:00:45]} 34. c4 {[%clk 0:01:05]}  Qa5 {[%clk 0:00:44]} 35. b3 {[%clk 0:01:02]}  h6 {[%clk 0:00:44]} 36. Qe4 {[%clk 0:00:55]}  Qc5 {[%clk 0:00:42]} 37. Qf5 {[%clk 0:00:52]}  Qd4 {[%clk 0:00:41]} 38. Qf4 {[%clk 0:00:53]}  Qc5 {[%clk 0:00:40]} 39. Kh2 {[%clk 0:00:52]}  Re8 {[%clk 0:00:39]} 40. Rf3 {[%clk 0:00:52]}  Qe7 {[%clk 0:00:38]} 41. Qg3 {[%clk 0:00:50]}  Kh7 {[%clk 0:00:37]} 42. Rd3 {[%clk 0:00:48]}  Qe4 {[%clk 0:00:35]} 43. Rd7 {[%clk 0:00:47]}  Re7 {[%clk 0:00:34]} 44. Rd6 {[%clk 0:00:44]}  Re5 {[%clk 0:00:32]} 45. Qd3 {[%clk 0:00:37]}  Qxd3 {[%clk 0:00:30]} 46. Rxd3 {[%clk 0:00:38]}  a5 {[%clk 0:00:25]} 47. Kg3 {[%clk 0:00:36]}  Re2 {[%clk 0:00:25]} 48. a3 {[%clk 0:00:35]}  Rb2 {[%clk 0:00:25]} 49. Kf3 {[%clk 0:00:33]}  Kg6 {[%clk 0:00:24]} 50. Ke4 {[%clk 0:00:27]}  Kg5 {[%clk 0:00:23]} 51. g3 {[%clk 0:00:26]}  Ra2 {[%clk 0:00:20]} 52. a4 {[%clk 0:00:23]}  Rf2 {[%clk 0:00:17]} 53. Ke5 {[%clk 0:00:21]}  Rh2 {[%clk 0:00:16]} 54. h4+ {[%clk 0:00:20]}  Kg4 {[%clk 0:00:16]} 55. Kd6 {[%clk 0:00:21]}  Rf2 {[%clk 0:00:14]} 56. Kxc6 {[%clk 0:00:20]}  Rf6+ {[%clk 0:00:14]} 57. Kb5 {[%clk 0:00:21]}  Re6 {[%clk 0:00:12]} 58. c5 {[%clk 0:00:20]}  Kf5 {[%clk 0:00:12]} 59. c6 {[%clk 0:00:21]}  Ke4 {[%clk 0:00:13]} 60. Rc3 {[%clk 0:00:20]}  Re8 {[%clk 0:00:13]} 61. c7 {[%clk 0:00:20]}  Rc8 {[%clk 0:00:14]} 62. Rc4+ {[%clk 0:00:21]}  Kd5 {[%clk 0:00:14]} 63. Kb6 {[%clk 0:00:22]}  Kd6 {[%clk 0:00:13]} 64. Kb7 {[%clk 0:00:22]} 1-0


[Site "https://www.chess.com"]

[Event "Titled Tuesday Blitz June 14 Early 2022"]
[White "Maximov, Dmitry"]
[Black "Sanal, Vahap"]
[WhiteFideId "14105659"]
[BlackFideId "6300545"]
[WhiteElo "2494"]
[BlackElo "2574"]
[Result "1-0"]
[Round "07"]
[TimeControl "180+1"]
[Date "2022.06.14"]
[WhiteClock "0:00:13"]
[BlackClock "0:00:02"]

1. e4 {[%clk 0:03:00]}  d6 {[%clk 0:03:00]} 2. d4 {[%clk 0:03:00]}  Nf6 {[%clk 0:03:01]} 3. Nc3 {[%clk 0:03:01]}  e5 {[%clk 0:03:01]} 4. Nge2 {[%clk 0:02:59]}  Nbd7 {[%clk 0:03:00]} 5. g3 {[%clk 0:02:57]}  Be7 {[%clk 0:03:00]} 6. Bg2 {[%clk 0:02:58]}  c6 {[%clk 0:03:01]} 7. a4 {[%clk 0:02:57]}  b6 {[%clk 0:02:56]} 8. O-O {[%clk 0:02:56]}  Bb7 {[%clk 0:02:56]} 9. h3 {[%clk 0:02:46]}  h5 {[%clk 0:02:53]} 10. Be3 {[%clk 0:02:34]}  a6 {[%clk 0:02:52]} 11. Qd2 {[%clk 0:02:34]}  b5 {[%clk 0:02:52]} 12. f4 {[%clk 0:02:29]}  Qc7 {[%clk 0:02:43]} 13. axb5 {[%clk 0:02:06]}  axb5 {[%clk 0:02:42]} 14. Rxa8+ {[%clk 0:02:05]}  Bxa8 {[%clk 0:02:43]} 15. Nd1 {[%clk 0:01:51]}  Bb7 {[%clk 0:02:11]} 16. Nf2 {[%clk 0:01:49]}  Qb8 {[%clk 0:02:04]} 17. b3 {[%clk 0:01:42]}  Qa8 {[%clk 0:02:01]} 18. c4 {[%clk 0:01:39]}  bxc4 {[%clk 0:01:59]} 19. bxc4 {[%clk 0:01:39]}  O-O {[%clk 0:01:53]} 20. c5 {[%clk 0:01:32]}  exd4 {[%clk 0:01:50]} 21. Nxd4 {[%clk 0:01:32]}  dxc5 {[%clk 0:01:34]} 22. Nf5 {[%clk 0:01:32]}  Re8 {[%clk 0:01:34]} 23. g4 {[%clk 0:01:25]}  hxg4 {[%clk 0:01:33]} 24. hxg4 {[%clk 0:01:25]}  Bf8 {[%clk 0:01:30]} 25. g5 {[%clk 0:01:26]}  g6 {[%clk 0:01:14]} 26. gxf6 {[%clk 0:01:24]}  Nxf6 {[%clk 0:01:14]} 27. Nd6 {[%clk 0:01:14]}  Rd8 {[%clk 0:01:12]} 28. e5 {[%clk 0:01:13]}  Nh5 {[%clk 0:01:01]} 29. Bxc5 {[%clk 0:01:09]}  Bc8 {[%clk 0:00:56]} 30. Nfe4 {[%clk 0:01:04]}  Bh6 {[%clk 0:00:44]} 31. Bb6 {[%clk 0:00:52]}  Nxf4 {[%clk 0:00:31]} 32. Rxf4 {[%clk 0:00:49]}  Qa1+ {[%clk 0:00:30]} 33. Kf2 {[%clk 0:00:34]}  Qxe5 {[%clk 0:00:22]} 34. Be3 {[%clk 0:00:34]}  Bxf4 {[%clk 0:00:09]} 35. Bxf4 {[%clk 0:00:34]}  Qe6 {[%clk 0:00:02]} 36. Qd4 {[%clk 0:00:28]}  Qa2+ {[%clk 0:00:02]} 37. Kg3 {[%clk 0:00:26]}  Qb3+ {[%clk 0:00:02]} 38. Bf3 {[%clk 0:00:26]}  Qe6 {[%clk 0:00:02]} 39. Nf6+ {[%clk 0:00:26]}  Kf8 {[%clk 0:00:02]} 40. Nh7+ {[%clk 0:00:18]}  Ke7 {[%clk 0:00:03]} 41. Ng5 {[%clk 0:00:17]}  Qe1+ {[%clk 0:00:02]} 42. Kg2 {[%clk 0:00:15]}  Be6 {[%clk 0:00:02]} 43. Qc5 {[%clk 0:00:14]}  Kd7 {[%clk 0:00:02]} 44. Qa7# {[%clk 0:00:13]} 1-0


[Site "https://www.chess.com"]

[Event "Titled Tuesday Blitz June 14 Early 2022"]
[White "Paravyan, David"]
[Black "Kosakowski, Jakub"]
[WhiteFideId "4194985"]
[BlackFideId "1185080"]
[WhiteElo "2569"]
[BlackElo "2476"]
[Result "1-0"]
[Round "07"]
[TimeControl "180+1"]
[Date "2022.06.14"]
[WhiteClock "0:00:07"]
[BlackClock "0:00:02"]

1. e4 {[%clk 0:03:00]}  e5 {[%clk 0:02:56]} 2. Nf3 {[%clk 0:02:58]}  Nc6 {[%clk 0:02:57]} 3. Nc3 {[%clk 0:02:57]}  Nf6 {[%clk 0:02:57]} 4. d4 {[%clk 0:02:58]}  exd4 {[%clk 0:02:57]} 5. Nxd4 {[%clk 0:02:58]}  Bb4 {[%clk 0:02:57]} 6. Nxc6 {[%clk 0:02:55]}  bxc6 {[%clk 0:02:57]} 7. Bd3 {[%clk 0:02:56]}  d5 {[%clk 0:02:58]} 8. exd5 {[%clk 0:02:57]}  O-O {[%clk 0:02:58]} 9. O-O {[%clk 0:02:57]}  cxd5 {[%clk 0:02:58]} 10. h3 {[%clk 0:02:58]}  c6 {[%clk 0:02:58]} 11. Qf3 {[%clk 0:02:57]}  Rb8 {[%clk 0:02:57]} 12. Bg5 {[%clk 0:02:49]}  Be7 {[%clk 0:02:46]} 13. b3 {[%clk 0:02:47]}  h6 {[%clk 0:02:46]} 14. Bxh6 {[%clk 0:02:45]}  gxh6 {[%clk 0:02:28]} 15. Qg3+ {[%clk 0:02:45]}  Bg4 {[%clk 0:02:18]} 16. hxg4 {[%clk 0:02:45]}  Bd6 {[%clk 0:02:18]} 17. Qh3 {[%clk 0:02:38]}  Kg7 {[%clk 0:02:16]} 18. Ne2 {[%clk 0:02:37]}  h5 {[%clk 0:01:43]} 19. Nd4 {[%clk 0:02:31]}  Rh8 {[%clk 0:01:33]} 20. Nf5+ {[%clk 0:02:30]}  Kf8 {[%clk 0:01:33]} 21. Rae1 {[%clk 0:01:29]}  Nxg4 {[%clk 0:01:30]} 22. Re2 {[%clk 0:01:29]}  Qf6 {[%clk 0:01:21]} 23. Rfe1 {[%clk 0:01:24]}  Bb4 {[%clk 0:01:17]} 24. Qg3 {[%clk 0:01:18]}  Rd8 {[%clk 0:01:08]} 25. Rd1 {[%clk 0:00:39]}  Bc5 {[%clk 0:01:07]} 26. Rde1 {[%clk 0:00:38]}  Bb4 {[%clk 0:01:07]} 27. Qc7 {[%clk 0:00:27]}  Bxe1 {[%clk 0:00:59]} 28. Rxe1 {[%clk 0:00:28]}  Rg8 {[%clk 0:00:48]} 29. Re7 {[%clk 0:00:26]}  Ra8 {[%clk 0:00:10]} 30. f3 {[%clk 0:00:07]}  Nh6 {[%clk 0:00:02]} 31. Nxh6 {[%clk 0:00:07]} 1-0


[Site "https://www.chess.com"]

[Event "Titled Tuesday Blitz June 14 Early 2022"]
[White "Priyanka Nutakki"]
[Black "Puranik, Abhimanyu"]
[WhiteFideId "25049615"]
[BlackFideId "5061245"]
[WhiteElo "1912"]
[BlackElo "2520"]
[Result "0-1"]
[Round "07"]
[TimeControl "180+1"]
[Date "2022.06.14"]
[WhiteClock "0:00:01"]
[BlackClock "0:00:17"]

1. d4 {[%clk 0:03:00]}  Nf6 {[%clk 0:02:58]} 2. Nf3 {[%clk 0:02:59]}  g6 {[%clk 0:02:59]} 3. Bf4 {[%clk 0:03:00]}  Bg7 {[%clk 0:02:59]} 4. e3 {[%clk 0:03:00]}  O-O {[%clk 0:03:00]} 5. Be2 {[%clk 0:03:01]}  d5 {[%clk 0:03:00]} 6. O-O {[%clk 0:03:00]}  Nbd7 {[%clk 0:02:59]} 7. c4 {[%clk 0:03:00]}  c5 {[%clk 0:02:56]} 8. dxc5 {[%clk 0:02:59]}  Nh5 {[%clk 0:02:38]} 9. Nc3 {[%clk 0:02:56]}  Nxf4 {[%clk 0:02:37]} 10. exf4 {[%clk 0:02:56]}  dxc4 {[%clk 0:02:36]} 11. c6 {[%clk 0:02:21]}  bxc6 {[%clk 0:02:35]} 12. Bxc4 {[%clk 0:02:22]}  Nb6 {[%clk 0:02:23]} 13. Bb3 {[%clk 0:02:16]}  Bg4 {[%clk 0:02:15]} 14. Qe2 {[%clk 0:02:11]}  Nd5 {[%clk 0:02:09]} 15. Nxd5 {[%clk 0:02:01]}  cxd5 {[%clk 0:02:09]} 16. Rad1 {[%clk 0:02:02]}  e6 {[%clk 0:02:07]} 17. h3 {[%clk 0:02:02]}  Bxf3 {[%clk 0:02:07]} 18. Qxf3 {[%clk 0:02:03]}  a5 {[%clk 0:01:59]} 19. Rd2 {[%clk 0:01:54]}  Qb6 {[%clk 0:01:53]} 20. h4 {[%clk 0:01:25]}  a4 {[%clk 0:01:41]} 21. Bc2 {[%clk 0:01:19]}  Qxb2 {[%clk 0:01:32]} 22. Rfd1 {[%clk 0:01:02]}  Qc3 {[%clk 0:01:21]} 23. Qe2 {[%clk 0:00:55]}  Rfc8 {[%clk 0:01:11]} 24. h5 {[%clk 0:00:53]}  Qf6 {[%clk 0:01:03]} 25. hxg6 {[%clk 0:00:45]}  hxg6 {[%clk 0:01:02]} 26. g3 {[%clk 0:00:45]}  Rc4 {[%clk 0:00:57]} 27. Rb1 {[%clk 0:00:36]}  Rac8 {[%clk 0:00:56]} 28. Bd3 {[%clk 0:00:33]}  Rc3 {[%clk 0:00:52]} 29. Kg2 {[%clk 0:00:30]}  a3 {[%clk 0:00:53]} 30. Ba6 {[%clk 0:00:27]}  Rd8 {[%clk 0:00:50]} 31. Rb7 {[%clk 0:00:21]}  Qf5 {[%clk 0:00:40]} 32. Bd3 {[%clk 0:00:20]}  Qh5 {[%clk 0:00:39]} 33. Qxh5 {[%clk 0:00:15]}  gxh5 {[%clk 0:00:38]} 34. Kh3 {[%clk 0:00:14]}  Bf6 {[%clk 0:00:38]} 35. Be2 {[%clk 0:00:13]}  h4 {[%clk 0:00:39]} 36. Bh5 {[%clk 0:00:13]}  Rf8 {[%clk 0:00:35]} 37. Kg4 {[%clk 0:00:13]}  hxg3 {[%clk 0:00:35]} 38. fxg3 {[%clk 0:00:14]}  Kg7 {[%clk 0:00:27]} 39. Ra7 {[%clk 0:00:14]}  Bd8 {[%clk 0:00:25]} 40. Re2 {[%clk 0:00:10]}  Kf6 {[%clk 0:00:24]} 41. Rf2 {[%clk 0:00:04]}  Rg8+ {[%clk 0:00:21]} 42. Kh4 {[%clk 0:00:01]}  Kf5+ {[%clk 0:00:17]} 0-1


[Site "https://www.chess.com"]